Workbook

Sheet BB_Renten-Rechner
A1: Startkapital | B1: 20000 | D1: Jahre | E1: Alter | F1: Jahr | G1: Kapital | H1: Sparrate p.a. | I1: Entnahme p.a. | J1: Kaufkraft (heute) p.a. | K1: Rendite p.a. | L1: Sondereinlagen/-entnahmen | M1: Entnahmesatz %
A2: monatliche Sparrate € | B2: 500 | D2: 1 | E2: =B11 -> 26 | F2: =B3 -> 2026 | G2: =$B$1 -> 20000 | H2: =IF(F2<$B$4, 12*$B$2 * (1 + $B$14 / 100) ^ (F2 - $B$3), 0) -> 6000 | I2: =IF(F2 >= $B$4, -12 * $B$5 / (1 - $B$13 / 100) * (1 + $B$7 / 100) ^ (F2 - $B$4), 0) -> 0 | J2: =-(I2 * (1 - $B$13 / 100)) / (1 + $B$7 / 100) ^ (F2 - $B$3) -> 0 | K2: =IF((G2+H2+L2)<=0, 0, (G2 + L2 + I2 +H2/2) * ($B$6 / 100)) -> 1610 | L2: 0 | M2: =IF(AND(I2+L2<0,G2>0),-(I2+L2)/G2, 0) -> 0
A3: Beginn Investment (Jahr) | B3: 2026 | D3: 2 | E3: =E2+1 -> 27 | F3: 2027 | G3: =IF( G2+H2+I2+K2+L2 <0, 0, G2+H2+I2+K2+L2) -> 27610 | H3: 6120 | I3: 0 | J3: 0 | K3: 2146.9 | L3: 0 | M3: 0
A4: Beginn Entnahme (Jahr) | B4: 2064 | D4: 3 | E4: =E3+1 -> 28 | F4: 2028 | G4: 35876.9 | H4: 6242.4 | I4: 0 | J4: 0 | K4: 2729.867 | L4: 0 | M4: 0
A5: monatliche Entnahme € (netto) | B5: 4000 | D5: 4 | E5: =E4+1 -> 29 | F5: 2029 | G5: 44849.167 | H5: 6367.248 | I5: 0 | J5: 0 | K5: 3362.29537 | L5: 0 | M5: 0
A6: Rendite p.a. in % | B6: 7 | D6: 5 | E6: =E5+1 -> 30 | F6: 2030 | G6: 54578.71037 | H6: 6494.59296 | I6: 0 | J6: 0 | K6: 4047.82048 | L6: 0 | M6: 0
A7: Inflationsrate p.a. in % | B7: 2.5 | D7: 6 | E7: =E6+1 -> 31 | F7: 2031 | G7: 65121.12381 | H7: 6624.484819 | I7: 0 | J7: 0 | K7: 4790.335635 | L7: 0 | M7: 0
A8: Monatszins | B8: =(1 + $B$6 / 100)^(1 / 12) - 1 -> 0.005654145387 | D8: 7 | E8: =E7+1 -> 32 | F8: 2032 | G8: 76535.94426 | H8: 6756.974516 | I8: 0 | J8: 0 | K8: 5594.010207 | L8: 0 | M8: 0
A9: Kaufkraft Entnahme zum Start | B9: =$B$5/ (1 + $B$7 / 100) ^ ($B$4 - $B$3) -> 1565.139696 | D9: 8 | E9: =E8+1 -> 33 | F9: 2033 | G9: 88886.92899 | H9: 6892.114006 | I9: 0 | J9: 0 | K9: 6463.309019 | L9: 0 | M9: 0
A10: Vermögen vererben in € | B10: 1 | D10: 9 | E10: =E9+1 -> 34 | F10: 2034 | G10: 102242.352 | H10: 7029.956286 | I10: 0 | J10: 0 | K10: 7403.013111 | L10: 0 | M10: 0
A11: Alter bei Start | B11: 26 | D11: 10 | E11: =E10+1 -> 35 | F11: 2035 | G11: 116675.3214 | H11: 7170.555412 | I11: 0 | J11: 0 | K11: 8418.241938 | L11: 0 | M11: 0
A12: Lebenserwartung | B12: 100 | D12: 11 | E12: =E11+1 -> 36 | F12: 2036 | G12: 132264.1188 | H12: 7313.96652 | I12: 0 | J12: 0 | K12: 9514.477141 | L12: 0 | M12: 0
A13: Steuersatz in % | B13: 26 | D13: 12 | E13: =E12+1 -> 37 | F13: 2037 | G13: 149092.5624 | H13: 7460.24585 | I13: 0 | J13: 0 | K13: 10697.58797 | L13: 0 | M13: 0
A14: Sparrate jährlich steigern um % | B14: 2 | D14: 13 | E14: =E13+1 -> 38 | F14: 2038 | G14: 167250.3962 | H14: 7609.450767 | I14: 0 | J14: 0 | K14: 11973.85851 | L14: 0 | M14: 0
D15: 14 | E15: =E14+1 -> 39 | F15: 2039 | G15: 186833.7055 | H15: 7761.639783 | I15: 0 | J15: 0 | K15: 13350.01678 | L15: 0 | M15: 0
D16: 15 | E16: =E15+1 -> 40 | F16: 2040 | G16: 207945.3621 | H16: 7916.872578 | I16: 0 | J16: 0 | K16: 14833.26589 | L16: 0 | M16: 0
D17: 16 | E17: =E16+1 -> 41 | F17: 2041 | G17: 230695.5006 | H17: 8075.21003 | I17: 0 | J17: 0 | K17: 16431.31739 | L17: 0 | M17: 0
D18: 17 | E18: =E17+1 -> 42 | F18: 2042 | G18: 255202.028 | H18: 8236.714231 | I18: 0 | J18: 0 | K18: 18152.42696 | L18: 0 | M18: 0
D19: 18 | E19: =E18+1 -> 43 | F19: 2043 | G19: 281591.1692 | H19: 8401.448515 | I19: 0 | J19: 0 | K19: 20005.43254 | L19: 0 | M19: 0
D20: 19 | E20: =E19+1 -> 44 | F20: 2044 | G20: 309998.0502 | H20: 8569.477485 | I20: 0 | J20: 0 | K20: 21999.79523 | L20: 0 | M20: 0
D21: 20 | E21: =E20+1 -> 45 | F21: 2045 | G21: 340567.3229 | H21: 8740.867035 | I21: 0 | J21: 0 | K21: 24145.64295 | L21: 0 | M21: 0
D22: 21 | E22: =E21+1 -> 46 | F22: 2046 | G22: 373453.8329 | H22: 8915.684376 | I22: 0 | J22: 0 | K22: 26453.81726 | L22: 0 | M22: 0
D23: 22 | E23: =E22+1 -> 47 | F23: 2047 | G23: 408823.3345 | H23: 9093.998063 | I23: 0 | J23: 0 | K23: 28935.92335 | L23: 0 | M23: 0
D24: 23 | E24: =E23+1 -> 48 | F24: 2048 | G24: 446853.256 | H24: 9275.878025 | I24: 0 | J24: 0 | K24: 31604.38365 | L24: 0 | M24: 0
D25: 24 | E25: =E24+1 -> 49 | F25: 2049 | G25: 487733.5176 | H25: 9461.395585 | I25: 0 | J25: 0 | K25: =IF((G25+H25+L25)<=0, 0, (G25 + L25 + I25 +H25/2) * ($B$6 / 100)) -> 34472.49508 | L25: 0 | M25: =IF(AND(I25+L25<0,G25>0),-(I25+L25)/G25, 0) -> 0
D26: 25 | E26: =E25+1 -> 50 | F26: 2050 | G26: =IF( G25+H25+I25+K25+L25 <0, 0, G25+H25+I25+K25+L25) -> 531667.4083 | H26: 9650.623497 | I26: 0 | J26: 0 | K26: =IF((G26+H26+L26)<=0, 0, (G26 + L26 + I26 +H26/2) * ($B$6 / 100)) -> 37554.4904 | L26: 0 | M26: =IF(AND(I26+L26<0,G26>0),-(I26+L26)/G26, 0) -> 0
D27: 26 | E27: =E26+1 -> 51 | F27: 2051 | G27: =IF( G26+H26+I26+K26+L26 <0, 0, G26+H26+I26+K26+L26) -> 578872.5222 | H27: 9843.635967 | I27: 0 | J27: 0 | K27: 40865.60381 | L27: 0 | M27: 0
D28: 27 | E28: =E27+1 -> 52 | F28: 2052 | G28: 629581.762 | H28: 10040.50869 | I28: 0 | J28: 0 | K28: 44422.14114 | L28: 0 | M28: 0
D29: 28 | E29: =E28+1 -> 53 | F29: 2053 | G29: 684044.4118 | H29: 10241.31886 | I29: 0 | J29: 0 | K29: 48241.55499 | L29: 0 | M29: 0
D30: 29 | E30: =E29+1 -> 54 | F30: 2054 | G30: 742527.2856 | H30: 10446.14524 | I30: 0 | J30: 0 | K30: 52342.52508 | L30: 0 | M30: 0 | O30: Anleitung & Erklärungen Benutzung In die hellgrünen Zellen kannst du deine individuellen Daten eintragen. Die Tabelle und Charts passen sich automatisch an. - Unter "Vermögen vererben in €" kannst du den Betrag definieren, den du vererben möchtest. Hier muss mindestens 1€ eingetragen werden. - In der Spalte L "Sondereinlagen/-entnahmen" kannst du individuelle Beträge eingeben. Beispielsweise für einen geplanten Hauskauf oder Verkauf, Erbe etc... Entnahmen mit Minus-Zeichen (-) eintragen. Simulationen Früheste Rente ohne Verzehr – Berechnet das frühestmögliche Entnahmejahr, ab dem du in Rente gehen kannst, ohne dass dein Kapital je wieder schrumpft. Kippunkt Rendite – Berechnet die minimale jährliche Durchschnittsrendite, bei der dein Vermögen trotz Entnahmen jedes Jahr wächst (maximale Rendite bei 19,9% p.a.) Kippunkt Sparrate – Berechnet die minimale monatliche Sparrate, ab der dein Vermögen dauerhaft wächst – trotz Entnahmen. Volatilität 5/10/15/20 – Startet eine Monte-Carlo-Simulation mit der jeweiligen Volatilität (15 %, 10 %, 20 %, 5 %) auf Basis deiner Eingaben – inklusive Sondereinlagen, Inflation, Steuern, jährlicher Sparratensteigerung sowie der von dir angegebenen Lebenserwartung – und zeigt, mit welcher Wahrscheinlichkeit du dein gewünschtes Vererbungsziel am Ende deiner Lebenszeit erreichst. Hierfür wird automatisch ein weiteres Tabellenblatt erstellt. Die Simulation kann einige Sekunden dauern.
D31: 30 | E31: =E30+1 -> 55 | F31: 2055 | G31: 805315.956 | H31: 10655.06814 | I31: 0 | J31: 0 | K31: 56745.0443 | L31: 0 | M31: 0
D32: 31 | E32: =E31+1 -> 56 | F32: 2056 | G32: 872716.0684 | H32: 10868.1695 | I32: 0 | J32: 0 | K32: 61470.51072 | L32: 0 | M32: 0
D33: 32 | E33: =E32+1 -> 57 | F33: 2057 | G33: 945054.7486 | H33: 11085.53289 | I33: 0 | J33: 0 | K33: 66541.82606 | L33: 0 | M33: 0
D34: 33 | E34: =E33+1 -> 58 | F34: 2058 | G34: 1022682.108 | H34: 11307.24355 | I34: 0 | J34: 0 | K34: 71983.50106 | L34: 0 | M34: 0
D35: 34 | E35: =E34+1 -> 59 | F35: 2059 | G35: 1105972.852 | H35: 11533.38842 | I35: 0 | J35: 0 | K35: 77821.76825 | L35: 0 | M35: 0
D36: 35 | E36: =E35+1 -> 60 | F36: 2060 | G36: 1195328.009 | H36: 11764.05619 | I36: 0 | J36: 0 | K36: 84084.70259 | L36: 0 | M36: 0
D37: 36 | E37: =E36+1 -> 61 | F37: 2061 | G37: 1291176.768 | H37: 11999.33732 | I37: 0 | J37: 0 | K37: 90802.35054 | L37: 0 | M37: 0
D38: 37 | E38: =E37+1 -> 62 | F38: 2062 | G38: 1393978.455 | H38: 12239.32406 | I38: 0 | J38: 0 | K38: 98006.86823 | L38: 0 | M38: 0
D39: 38 | E39: =E38+1 -> 63 | F39: 2063 | G39: 1504224.648 | H39: 12484.11054 | I39: 0 | J39: 0 | K39: 105732.6692 | L39: 0 | M39: 0
D40: 39 | E40: =E39+1 -> 64 | F40: 2064 | G40: 1622441.428 | H40: 0 | I40: -64864.86486 | J40: 18781.67635 | K40: 109030.3594 | L40: 0 | M40: 0.03997978834
D41: 40 | E41: =E40+1 -> 65 | F41: 2065 | G41: 1666606.922 | H41: 0 | I41: -66486.48649 | J41: 18781.67635 | K41: 112008.4305 | L41: 0 | M41: 0.03989332194
D42: 41 | E42: =E41+1 -> 66 | F42: 2066 | G42: 1712128.866 | H42: 0 | I42: -68148.64865 | J42: 18781.67635 | K42: 115078.6152 | L42: 0 | M42: 0.03980345755
D43: 42 | E43: =E42+1 -> 67 | F43: 2067 | G43: 1759058.833 | H43: 0 | I43: -69852.36486 | J43: 18781.67635 | K43: 118244.4527 | L43: 0 | M43: 0.0397100788
D44: 43 | E44: =E43+1 -> 68 | F44: 2068 | G44: 1807450.921 | H44: 0 | I44: -71598.67399 | J44: 18781.67635 | K44: 121509.6573 | L44: 0 | M44: 0.03961306676
D45: 44 | E45: =E44+1 -> 69 | F45: 2069 | G45: 1857361.904 | H45: 0 | I45: -73388.64084 | J45: 18781.67635 | K45: 124878.1284 | L45: 0 | M45: 0.03951230005
D46: 45 | E46: =E45+1 -> 70 | F46: 2070 | G46: 1908851.391 | H46: 0 | I46: -75223.35686 | J46: 18781.67635 | K46: 128353.9624 | L46: 0 | M46: 0.03940765488
D47: 46 | E47: =E46+1 -> 71 | F47: 2071 | G47: 1961981.997 | H47: 0 | I47: -77103.94078 | J47: 18781.67635 | K47: 131941.4639 | L47: 0 | M47: 0.03929900524
D48: 47 | E48: =E47+1 -> 72 | F48: 2072 | G48: 2016819.52 | H48: 0 | I48: -79031.5393 | J48: 18781.67635 | K48: 135645.1587 | L48: 0 | M48: 0.03918622292
D49: 48 | E49: =E48+1 -> 73 | F49: 2073 | G49: 2073433.139 | H49: 0 | I49: -81007.32778 | J49: 18781.67635 | K49: 139469.8068 | L49: 0 | M49: 0.0390691777
D50: 49 | E50: =E49+1 -> 74 | F50: 2074 | G50: 2131895.618 | H50: 0 | I50: -83032.51097 | J50: 18781.67635 | K50: 143420.4175 | L50: 0 | M50: 0.03894773752
D51: 50 | E51: =E50+1 -> 75 | F51: 2075 | G51: 2192283.525 | H51: 0 | I51: -85108.32375 | J51: 18781.67635 | K51: 147502.2641 | L51: 0 | M51: 0.03882176862
D52: 51 | E52: =E51+1 -> 76 | F52: 2076 | G52: 2254677.465 | H52: 0 | I52: -87236.03184 | J52: 18781.67635 | K52: 151720.9003 | L52: 0 | M52: 0.03869113573
D53: 52 | E53: =E52+1 -> 77 | F53: 2077 | G53: 2319162.334 | H53: 0 | I53: -89416.93264 | J53: 18781.67635 | K53: 156082.1781 | L53: 0 | M53: 0.03855570235
D54: 53 | E54: =E53+1 -> 78 | F54: 2078 | G54: 2385827.579 | H54: 0 | I54: -91652.35596 | J54: 18781.67635 | K54: 160592.2656 | L54: 0 | M54: 0.03841533091
D55: 54 | E55: =E54+1 -> 79 | F55: 2079 | G55: 2454767.489 | H55: 0 | I55: -93943.66485 | J55: 18781.67635 | K55: 165257.6677 | L55: 0 | M55: 0.03826988311
D56: 55 | E56: =E55+1 -> 80 | F56: 2080 | G56: 2526081.492 | H56: 0 | I56: -96292.25648 | J56: 18781.67635 | K56: 170085.2465 | L56: 0 | M56: 0.03811922014
D57: 56 | E57: =E56+1 -> 81 | F57: 2081 | G57: 2599874.482 | H57: 0 | I57: -98699.56289 | J57: 18781.67635 | K57: 175082.2443 | L57: 0 | M57: 0.03796320306
D58: 57 | E58: =E57+1 -> 82 | F58: 2082 | G58: 2676257.163 | H58: 0 | I58: -101167.052 | J58: 18781.67635 | K58: 180256.3078 | L58: 0 | M58: 0.03780169311
D59: 58 | E59: =E58+1 -> 83 | F59: 2083 | G59: 2755346.419 | H59: 0 | I59: -103696.2283 | J59: 18781.67635 | K59: 185615.5134 | L59: 0 | M59: 0.03763455206
D60: 59 | E60: =E59+1 -> 84 | F60: 2084 | G60: 2837265.704 | H60: 0 | I60: -106288.634 | J60: 18781.67635 | K60: 191168.3949 | L60: 0 | M60: 0.03746164267
D61: 60 | E61: =E60+1 -> 85 | F61: 2085 | G61: 2922145.465 | H61: 0 | I61: -108945.8498 | J61: 18781.67635 | K61: 196923.9731 | L61: 0 | M61: 0.03728282904
D62: 61 | E62: =E61+1 -> 86 | F62: 2086 | G62: 3010123.588 | H62: 0 | I62: -111669.4961 | J62: 18781.67635 | K62: 202891.7865 | L62: 0 | M62: 0.03709797714
D63: 62 | E63: =E62+1 -> 87 | F63: 2087 | G63: 3101345.879 | H63: 0 | I63: -114461.2335 | J63: 18781.67635 | K63: 209081.9252 | L63: 0 | M63: 0.03690695522
D64: 63 | E64: =E63+1 -> 88 | F64: 2088 | G64: 3195966.571 | H64: 0 | I64: -117322.7643 | J64: 18781.67635 | K64: 215505.0664 | L64: 0 | M64: 0.03670963438
D65: 64 | E65: =E64+1 -> 89 | F65: 2089 | G65: 3294148.873 | H65: 0 | I65: -120255.8334 | J65: 18781.67635 | K65: 222172.5127 | L65: 0 | M65: 0.03650588909
D66: 65 | E66: =E65+1 -> 90 | F66: 2090 | G66: 3396065.552 | H66: 0 | I66: -123262.2292 | J66: 18781.67635 | K66: 229096.2326 | L66: 0 | M66: 0.03629559776
D67: 66 | E67: =E66+1 -> 91 | F67: 2091 | G67: 3501899.555 | H67: 0 | I67: -126343.785 | J67: 18781.67635 | K67: 236288.9039 | L67: 0 | M67: 0.03607864331
D68: 67 | E68: =E67+1 -> 92 | F68: 2092 | G68: 3611844.674 | H68: 0 | I68: -129502.3796 | J68: 18781.67635 | K68: 243763.9606 | L68: 0 | M68: 0.03585491384
D69: 68 | E69: =E68+1 -> 93 | F69: 2093 | G69: 3726106.255 | H69: 0 | I69: -132739.9391 | J69: 18781.67635 | K69: 251535.6421 | L69: 0 | M69: 0.03562430322
D70: 69 | E70: =E69+1 -> 94 | F70: 2094 | G70: 3844901.958 | H70: 0 | I70: -136058.4376 | J70: 18781.67635 | K70: 259619.0465 | L70: 0 | M70: 0.03538671182
D71: 70 | E71: =E70+1 -> 95 | F71: 2095 | G71: 3968462.567 | H71: 0 | I71: -139459.8985 | J71: 18781.67635 | K71: 268030.1868 | L71: 0 | M71: 0.03514204711
D72: 71 | E72: =E71+1 -> 96 | F72: 2096 | G72: 4097032.856 | H72: 0 | I72: -142946.396 | J72: 18781.67635 | K72: 276786.0522 | L72: 0 | M72: 0.03489022446
D73: 72 | E73: =E72+1 -> 97 | F73: 2097 | G73: 4230872.512 | H73: 0 | I73: -146520.0559 | J73: 18781.67635 | K73: 285904.6719 | L73: 0 | M73: 0.03463116779
D74: 73 | E74: =E73+1 -> 98 | F74: 2098 | G74: 4370257.128 | H74: 0 | I74: -150183.0573 | J74: 18781.67635 | K74: 295405.1849 | L74: 0 | M74: 0.03436481032
D75: 74 | E75: =E74+1 -> 99 | F75: 2099 | G75: 4515479.256 | H75: 0 | I75: -153937.6337 | J75: 18781.67635 | K75: 305307.9135 | L75: 0 | M75: 0.03409109531
D76: 75 | E76: =E75+1 -> 100 | F76: 2100 | G76: 4666849.535 | H76: 0 | I76: -157786.0745 | J76: 18781.67635 | K76: 315634.4423 | L76: 0 | M76: 0.0338099768
D77: 76 | E77: =E76+1 -> 101 | F77: 2101 | G77: 4824697.903 | H77: 0 | I77: -161730.7264 | J77: 18781.67635 | K77: 326407.7024 | L77: 0 | M77: 0.03352142033
D78: 77 | E78: =E77+1 -> 102 | F78: 2102 | G78: 4989374.879 | H78: 0 | I78: -165773.9946 | J78: 18781.67635 | K78: 337652.0619 | L78: 0 | M78: 0.0332254037
D79: 78 | E79: =E78+1 -> 103 | F79: 2103 | G79: 5161252.946 | H79: 0 | I79: -169918.3444 | J79: 18781.67635 | K79: 349393.4221 | L79: 0 | M79: 0.03292191764
D80: 79 | E80: =E79+1 -> 104 | F80: 2104 | G80: 5340728.024 | H80: 0 | I80: -174166.303 | J80: 18781.67635 | K80: 361659.3205 | L80: 0 | M80: 0.03261096657
D81: 80 | E81: =E80+1 -> 105 | F81: 2105 | G81: 5528221.042 | H81: 0 | I81: -178520.4606 | J81: 18781.67635 | K81: 374479.0407 | L81: 0 | M81: 0.03229256921
D82: 81 | E82: =E81+1 -> 106 | F82: 2106 | G82: 5724179.622 | H82: 0 | I82: -182983.4721 | J82: 18781.67635 | K82: 387883.7305 | L82: 0 | M82: 0.03196675929
D83: 82 | E83: =E82+1 -> 107 | F83: 2107 | G83: 5929079.88 | H83: 0 | I83: -187558.0589 | J83: 18781.67635 | K83: 401906.5275 | L83: 0 | M83: 0.03163358611
D84: 83 | E84: =E83+1 -> 108 | F84: 2108 | G84: 6143428.349 | H84: 0 | I84: -192247.0104 | J84: 18781.67635 | K84: 416582.6937 | L84: 0 | M84: 0.0312931151
D85: 84 | E85: =E84+1 -> 109 | F85: 2109 | G85: 6367764.032 | H85: 0 | I85: -197053.1857 | J85: 18781.67635 | K85: 431949.7592 | L85: 0 | M85: 0.03094542836
D86: 85 | E86: =E85+1 -> 110 | F86: 2110 | G86: 6602660.605 | H86: 0 | I86: -201979.5153 | J86: 18781.67635 | K86: 448047.6763 | L86: 0 | M86: 0.03059062511
D87: 86 | E87: =E86+1 -> 111 | F87: 2111 | G87: 6848728.766 | H87: 0 | I87: -207029.0032 | J87: 18781.67635 | K87: 464918.9834 | L87: 0 | M87: 0.03022882205
D88: 87 | E88: =E87+1 -> 112 | F88: 2112 | G88: 7106618.747 | H88: 0 | I88: -212204.7283 | J88: 18781.67635 | K88: 482608.9813 | L88: 0 | M88: 0.02986015373
D89: 88 | E89: =E88+1 -> 113 | F89: 2113 | G89: 7377023 | H89: 0 | I89: -217509.8465 | J89: 18781.67635 | K89: 501165.9207 | L89: 0 | M89: 0.02948477272
D90: 89 | E90: =E89+1 -> 114 | F90: 2114 | G90: 7660679.074 | H90: 0 | I90: -222947.5926 | J90: 18781.67635 | K90: 520641.2037 | L90: 0 | M90: 0.02910284982
D91: 90 | E91: =E90+1 -> 115 | F91: 2115 | G91: 7958372.685 | H91: 0 | I91: -228521.2824 | J91: 18781.67635 | K91: 541089.5982 | L91: 0 | M91: 0.02871457413
D92: 91 | E92: =E91+1 -> 116 | F92: 2116 | G92: 8270941.001 | H92: 0 | I92: -234234.3145 | J92: 18781.67635 | K92: 562569.468 | L92: 0 | M92: 0.02832015299
D93: 92 | E93: =E92+1 -> 117 | F93: 2117 | G93: 8599276.154 | H93: 0 | I93: -240090.1724 | J93: 18781.67635 | K93: 585143.0187 | L93: 0 | M93: 0.02791981186
D94: 93 | E94: =E93+1 -> 118 | F94: 2118 | G94: 8944329.001 | H94: 0 | I94: -246092.4267 | J94: 18781.67635 | K94: 608876.5602 | L94: 0 | M94: 0.02751379412
D95: 94 | E95: =E94+1 -> 119 | F95: 2119 | G95: 9307113.134 | H95: 0 | I95: -252244.7373 | J95: 18781.67635 | K95: 633840.7878 | L95: 0 | M95: 0.02710236071
D96: 95 | E96: =E95+1 -> 120 | F96: 2120 | G96: 9688709.185 | H96: 0 | I96: -258550.8558 | J96: 18781.67635 | K96: 660111.083 | L96: 0 | M96: 0.0266857897
